fUSD/lending_fUSD_20250616
["ID","MTS","AMOUNT","RATE_DAILY","PERIOD"]
[366062073,1750043440674,-151.0,0.00016328,2]
[366062074,1750043440684,-500.0,0.00016328,2]
[366062075,1750043440693,-687.62605363,0.00016328,2]
[366062076,1750043440703,-151.0,0.00016328,2]
[366062077,1750043440713,-500.0,0.00016328,2]
[366062078,1750043440723,-151.0,0.00016328,2]
[366062079,1750043440733,-500.0,0.00016328,2]
[366062080,1750043440743,-151.0,0.00016328,2]
[366062081,1750043440753,-500.0,0.00016328,2]
[366062082,1750043440763,-151.0,0.00016328,2]
[366062083,1750043440773,-500.0,0.00016328,2]
[366062084,1750043440783,-157.76368459,0.00016328,2]
[366062085,1750043440793,-500.0,0.00016328,2]
[366062086,1750043440804,-614.48381447,0.00016328,2]
[366062088,1750043440813,-500.0,0.00016328,2]
[366062090,1750043440822,-500.0,0.00016328,2]
[366062091,1750043440832,-500.0,0.00016328,2]
[366062092,1750043440842,-500.0,0.00016328,2]
[366062093,1750043440851,-500.0,0.00016328,2]
[366062094,1750043440862,-500.0,0.00016328,2]
[366062095,1750043440872,-500.0,0.00016328,2]
[366062096,1750043440881,-500.0,0.00016328,2]
[366062097,1750043440892,-500.0,0.00016328,2]
[366062099,1750043440902,-500.0,0.00016328,2]
[366062100,1750043440911,-500.0,0.00016328,2]
[366062101,1750043440921,-500.0,0.00016328,2]
[366062102,1750043440931,-328.13368032,0.00016328,2]
[366062105,1750043440953,-171.86631968,0.00016328,2]
[366062107,1750043440963,-500.0,0.00016328,2]
[366062109,1750043440972,-500.0,0.00016328,2]
[366062110,1750043440982,-500.0,0.00016328,2]
[366062111,1750043440992,-500.0,0.00016328,2]
[366062112,1750043441001,-500.0,0.00016328,2]
[366062113,1750043441012,-500.0,0.00016328,2]
[366062114,1750043441022,-500.0,0.00016328,2]
[366062115,1750043441032,-283.7302,0.00016336,2]
[366062116,1750043441042,-151.98104518,0.00016338,2]
[366062117,1750043441052,-191.03031641,0.00016338,2]
[366062118,1750043441061,-559.40718763,0.00016338,2]
[366062119,1750043441071,-150.90057217,0.00016338,2]
[366062120,1750043441081,-160.05611048,0.00016338,2]
[366062121,1750043441091,-23555.6417,0.00016338,2]
[366062122,1750043441101,-551.2411,0.00016338,2]
[366062123,1750043441111,-150.90057207,0.00016354,2]
[366062124,1750043441121,-2105.41764886,0.00016368,2]
[366062125,1750043441131,-150.90057207,0.0001637,2]
[366062126,1750043441140,-314.0,0.00016384,2]
[366062127,1750043441149,-150.90057207,0.00016385,2]
[366062128,1750043441159,-160.05611048,0.000164,2]
[366062129,1750043441169,-2065.31,0.000164,2]
[366062130,1750043441179,-300.0,0.000164,5]
[366062131,1750043441188,-150.90057207,0.00016401,2]
[366062132,1750043441198,-150.90057207,0.00016417,2]
[366062133,1750043441209,-2183.31810187,0.00016423,2]
[366062134,1750043441221,-288.3,0.00016427,2]
[366062135,1750043441231,-204.0,0.00016429,2]
[366062136,1750043441241,-1775.3192748,0.00016429,2]
[366062137,1750043441252,-499.2640645,0.00016429,2]
[366062138,1750043441263,-1198.3122651,0.00016429,2]
[366062139,1750043441272,-11780.5950892,0.00016429,2]
[366062140,1750043441282,-151.98104517,0.00016432,2]
[366062141,1750043441291,-150.90057207,0.00016433,2]
[366062142,1750043441301,-233.3888434,0.00016436,2]
[366062143,1750043441310,-307.45524351,0.00016436,2]
[366062144,1750043441320,-304.17,0.00016437,2]
[366062145,1750043441330,-155.35,0.00016437,2]
[366062146,1750043441339,-212.73604379,0.00016437,2]
[366062147,1750043441348,-8447.3491691,0.00016437,2]
[366062148,1750043441358,-408.7385418,0.00016437,2]
[366062149,1750043441368,-36824.9703514,0.00016437,2]
[366062150,1750043441378,-275825.2419999,0.00016437,2]
[366062151,1750043441388,-200.9441585,0.00016437,2]
[366062152,1750043441397,-576.98167376,0.00016438,2]
[366062153,1750043441407,-490.0,0.00016438,2]
[366062154,1750043441416,-551.01796981,0.00016438,2]
[366062155,1750043441426,-490.0,0.00016438,2]
[366062156,1750043441436,-490.89986222,0.00016438,2]
[366062157,1750043441445,-200.0,0.00016438,2]
[366062158,1750043441455,-151.324056,0.00016438,2]
[366062159,1750043441466,-490.0,0.00016438,2]
[366062160,1750043441475,-491.93552755,0.00016438,2]
[366062161,1750043441486,-490.0,0.00016438,2]
[366062162,1750043441495,-300.15643806,0.00016438,2]
[366062163,1750043441505,-854.6,0.00016438,2]
[366062164,1750043441515,-490.0,0.00016438,2]
[366062165,1750043441525,-825.72,0.00016438,2]
[366062166,1750043441534,-490.0,0.00016438,2]
[366062167,1750043441544,-837.6,0.00016438,2]
[366062168,1750043441553,-497.03590707,0.00016438,2]
[366062169,1750043441562,-490.0,0.00016438,2]
[366062170,1750043441572,-1055.2,0.00016438,2]
[366062171,1750043441581,-493.67045002,0.00016438,2]
[366062172,1750043441591,-490.0,0.00016438,2]
[366062173,1750043441600,-490.0,0.00016438,2]
[366062174,1750043441610,-490.0,0.00016438,2]
[366062175,1750043441620,-1180.45,0.00016438,2]
[366062176,1750043441630,-493.7286056,0.00016438,2]
[366062177,1750043441639,-491.05454605,0.00016438,2]
[366062178,1750043441649,-490.0,0.00016438,2]
[366062179,1750043441658,-747.63,0.00016438,2]
[366062180,1750043441668,-494.36688997,0.00016438,2]
[366062181,1750043441677,-151.0,0.00016438,2]
[366062182,1750043441687,-490.0,0.00016438,2]
[366062183,1750043441697,-490.0,0.00016438,2]
[366062184,1750043441836,-490.0,0.00016438,2]
[366062185,1750043441847,-492.40480381,0.00016438,2]
[366062186,1750043441857,-481.24287783,0.00016438,2]
[366062187,1750043441866,-490.0,0.00016438,2]
[366062188,1750043441876,-643.39,0.00016438,2]
[366062189,1750043441885,-490.0,0.00016438,2]
[366062190,1750043441895,-496.53153022,0.00016438,2]
[366062191,1750043441904,-490.0,0.00016438,2]
[366062192,1750043441913,-492.38736297,0.00016438,2]
[366062193,1750043441922,-490.0,0.00016438,2]
[366062194,1750043441931,-658.61,0.00016438,2]
[366062195,1750043441940,-490.0,0.00016438,2]
[366062196,1750043441949,-490.0,0.00016438,2]
[366062197,1750043441958,-490.0,0.00016438,2]
[366062198,1750043441968,-490.0,0.00016438,2]
[366062199,1750043441977,-491.61421946,0.00016438,2]
[366062200,1750043441986,-593.7,0.00016438,2]
[366062201,1750043441995,-1726.04,0.00016438,2]
[366062202,1750043442005,-501.09,0.00016438,2]
[366062203,1750043442015,-151.0,0.00016438,2]
[366062204,1750043442024,-490.0,0.00016438,2]
[366062205,1750043442033,-497.57872202,0.00016438,2]
[366062206,1750043442042,-490.0,0.00016438,2]
[366062207,1750043442052,-151.0,0.00016438,2]
[366062208,1750043442060,-490.0,0.00016438,2]
[366062209,1750043442071,-151.0,0.00016438,2]
[366062210,1750043442080,-151.0,0.00016438,2]
[366062211,1750043442090,-490.0,0.00016438,2]
[366062212,1750043442099,-490.0,0.00016438,2]
[366062213,1750043442108,-704.15,0.00016438,2]
[366062214,1750043442118,-490.0,0.00016438,2]
[366062215,1750043442127,-490.0,0.00016438,2]
[366062216,1750043442136,-716.5,0.00016438,2]
[366062217,1750043442146,-490.0,0.00016438,2]
[366062218,1750043442155,-406.65545927,0.00016438,2]
[366062219,1750043442164,-490.0,0.00016438,2]
[366062220,1750043442174,-490.0,0.00016438,2]
[366062221,1750043442184,-151.0,0.00016438,2]
[366062222,1750043442193,-491.5898332,0.00016438,2]
[366062223,1750043442203,-490.0,0.00016438,2]
[366062224,1750043442215,-490.0,0.00016438,2]
[366062225,1750043442224,-496.27785393,0.00016438,2]
[366062226,1750043442235,-490.0,0.00016438,2]
[366062227,1750043442244,-620.0,0.00016438,2]
[366062228,1750043442254,-490.0,0.00016438,2]
[366062229,1750043442263,-490.0,0.00016438,2]
[366062230,1750043442273,-490.0,0.00016438,2]
[366062231,1750043442282,-1460.75,0.00016438,2]
[366062232,1750043442292,-494.82343281,0.00016438,2]
[366062233,1750043442302,-539.82,0.00016438,2]
[366062234,1750043442311,-800.82,0.00016438,2]
[366062235,1750043442320,-490.0,0.00016438,2]
[366062236,1750043442330,-395.73284872,0.00016438,2]
[366062237,1750043442339,-490.0,0.00016438,2]
[366062238,1750043442349,-151.0,0.00016438,2]
[366062239,1750043442358,-500.0,0.00016438,2]
[366062240,1750043442368,-500.0,0.00016438,2]
[366062241,1750043442378,-492.79273737,0.00016438,2]
[366062242,1750043442388,-500.0,0.00016438,2]
[366062243,1750043442397,-522.75,0.00016438,2]
[366062244,1750043442407,-494.135658,0.00016438,2]
[366062245,1750043442416,-704.58,0.00016438,2]
[366062246,1750043442426,-239.501862,0.00016438,2]
[366062247,1750043442435,-239.501862,0.00016438,2]
[366062248,1750043442445,-490.0,0.00016438,2]
[366062249,1750043442455,-541.69,0.00016438,2]
[366062250,1750043442464,-490.0,0.00016438,2]
[366062251,1750043442474,-491.74741739,0.00016438,2]
[366062252,1750043442483,-157.153631,0.00016438,2]
[366062253,1750043442494,-491.2364745,0.00016438,2]
[366062254,1750043442504,-490.0,0.00016438,2]
[366062255,1750043442514,-490.0,0.00016438,2]
[366062256,1750043442524,-502.67955081,0.00016438,2]
[366062257,1750043442534,-151.51884,0.00016438,2]
[366062258,1750043442544,-490.0,0.00016438,2]
[366062259,1750043442554,-495.11879285,0.00016438,2]
[366062260,1750043442564,-497.63430465,0.00016438,2]
[366062261,1750043442573,-361.69596325,0.00016438,2]
[366062262,1750043442583,-151.51884,0.00016438,2]
[366062263,1750043442592,-490.0,0.00016438,2]
[366062264,1750043442601,-490.0,0.00016438,2]
[366062265,1750043442611,-275.476253,0.00016438,2]
[366062266,1750043442620,-490.0,0.00016438,2]
[366062267,1750043442631,-491.77458165,0.00016438,2]
[366062268,1750043442640,-490.0,0.00016438,2]
[366062269,1750043442649,-490.0,0.00016438,2]
[366062270,1750043442658,-855.96,0.00016438,2]
[366062271,1750043442668,-151.0,0.00016438,2]
[366062272,1750043442677,-490.0,0.00016438,2]
[366062273,1750043442686,-522.54,0.00016438,2]
[366062274,1750043442695,-491.61154044,0.00016438,2]
[366062275,1750043442705,-501.9109641,0.00016438,2]
[366062276,1750043442714,-151.0,0.00016438,2]
[366062277,1750043442724,-490.0,0.00016438,2]
[366062278,1750043442733,-543.80454121,0.00016438,2]
[366062279,1750043442742,-151.0,0.00016438,2]
[366062280,1750043442752,-597.87,0.00016438,2]
[366062281,1750043442762,-493.22934533,0.00016438,2]
[366062282,1750043442771,-491.42602028,0.00016438,2]
[366062283,1750043442781,-914.37,0.00016438,2]
[366062284,1750043442790,-492.93608638,0.00016438,2]
[366062285,1750043442800,-490.0,0.00016438,2]
[366062286,1750043442810,-812.09,0.00016438,2]
[366062287,1750043442820,-490.0,0.00016438,2]
[366062288,1750043442829,-490.0,0.00016438,2]
[366062289,1750043442839,-497.30409909,0.00016438,2]
[366062290,1750043442849,-200.0,0.00016438,2]
[366062291,1750043442859,-488.5,0.00016438,2]
[366062292,1750043442868,-1781.93,0.00016438,2]
[366062293,1750043442877,-494.39857554,0.00016438,2]
[366062294,1750043442887,-490.0,0.00016438,2]
[366062295,1750043442896,-490.0,0.00016438,2]
[366062296,1750043442905,-151.0,0.00016438,2]
[366062297,1750043442915,-490.0,0.00016438,2]
[366062298,1750043442925,-643.59,0.00016438,2]
[366062299,1750043442934,-490.0,0.00016438,2]
[366062300,1750043442944,-490.0,0.00016438,2]
[366062301,1750043442954,-490.0,0.00016438,2]
[366062302,1750043442964,-490.0,0.00016438,2]
[366062303,1750043442974,-490.0,0.00016438,2]
[366062304,1750043442983,-490.0,0.00016438,2]
[366062305,1750043442993,-151.0,0.00016438,2]
[366062306,1750043443002,-502.79121535,0.00016438,2]
[366062307,1750043443013,-490.0,0.00016438,2]
[366062308,1750043443023,-494.84953101,0.00016438,2]
[366062309,1750043443035,-1671.71,0.00016438,2]
[366062310,1750043443045,-490.0,0.00016438,2]
[366062311,1750043443055,-522.16,0.00016438,2]
[366062312,1750043443065,-490.0,0.00016438,2]
[366062313,1750043443075,-490.0,0.00016438,2]
[366062314,1750043443085,-738.47,0.00016438,2]
[366062315,1750043443095,-490.0,0.00016438,2]
[366062316,1750043443105,-1417.31,0.00016438,2]
[366062317,1750043443114,-657.7,0.00016438,2]
[366062318,1750043443124,-490.0,0.00016438,2]
[366062319,1750043443133,-495.76487846,0.00016438,2]
[366062320,1750043443143,-490.0,0.00016438,2]
[366062321,1750043443152,-490.0,0.00016438,2]
[366062322,1750043443162,-498.37894836,0.00016438,2]
[366062323,1750043443172,-652.57,0.00016438,2]
[366062324,1750043443181,-490.0,0.00016438,2]
[366062325,1750043443191,-493.50828605,0.00016438,2]
[366062326,1750043443201,-490.0,0.00016438,2]
[366062327,1750043443212,-490.0,0.00016438,2]
[366062328,1750043443224,-601.37,0.00016438,2]
[366062329,1750043443234,-1850.22,0.00016438,2]
[366062330,1750043443243,-1336.75,0.00016438,2]
[366062331,1750043443255,-490.0,0.00016438,2]
[366062332,1750043443265,-490.0,0.00016438,2]
[366062333,1750043443276,-490.0,0.00016438,2]
[366062334,1750043443285,-518.24,0.00016438,2]
[366062335,1750043443298,-490.0,0.00016438,2]
[366062336,1750043443308,-492.00251383,0.00016438,2]
[366062337,1750043443318,-491.61805105,0.00016438,2]
[366062338,1750043443327,-503.7446977,0.00016438,2]
[366062339,1750043443337,-1480.78,0.00016438,2]
[366062340,1750043443346,-490.0,0.00016438,2]
[366062341,1750043443356,-490.0,0.00016438,2]
[366062342,1750043443366,-1156.75,0.00016438,2]
[366062343,1750043443376,-490.0,0.00016438,2]
[366062344,1750043443386,-294.82129811,0.00016438,2]
[366062345,1750043443395,-490.0,0.00016438,2]
[366062346,1750043443406,-490.0,0.00016438,2]
[366062347,1750043443415,-490.0,0.00016438,2]
[366062348,1750043443425,-490.0,0.00016438,2]
[366062349,1750043443435,-707.71,0.00016438,2]
[366062350,1750043443444,-297.08,0.00016438,2]
[366062351,1750043443454,-1393.72,0.00016438,2]
[366062352,1750043443465,-614.87,0.00016438,2]
[366062353,1750043443475,-499.32236933,0.00016438,2]
[366062354,1750043443486,-151.0,0.00016438,2]
[366062355,1750043443496,-1746.31,0.00016438,2]
[366062356,1750043443506,-490.0,0.00016438,2]
[366062357,1750043443516,-490.0,0.00016438,2]
[366062358,1750043443527,-1543.35,0.00016438,2]
[366062359,1750043443536,-490.0,0.00016438,2]
[366062360,1750043443546,-788.6,0.00016438,2]
[366062361,1750043443556,-504.83,0.00016438,2]
[366062362,1750043443566,-490.0,0.00016438,2]
[366062363,1750043443576,-1562.83,0.00016438,2]
[366062364,1750043443587,-583.43,0.00016438,2]
[366062365,1750043443598,-490.0,0.00016438,2]
[366062366,1750043443608,-489.91118686,0.00016438,2]
[366062367,1750043443618,-490.0,0.00016438,2]
[366062368,1750043443628,-885.09,0.00016438,2]
[366062370,1750043443638,-1392.85,0.00016438,2]
[366062371,1750043443648,-490.0,0.00016438,2]
[366062372,1750043443658,-572.82,0.00016438,2]
[366062373,1750043443668,-376.76920502,0.00016438,2]
[366062374,1750043443678,-490.0,0.00016438,2]
[366062376,1750043443688,-490.0,0.00016438,2]
[366062377,1750043443698,-1581.77,0.00016438,2]
[366062378,1750043443708,-490.0,0.00016438,2]
[366062379,1750043443718,-490.0,0.00016438,2]
[366062380,1750043443728,-490.0,0.00016438,2]
[366062381,1750043443738,-1223.53,0.00016438,2]
[366062382,1750043443747,-490.81088513,0.00016438,2]
[366062383,1750043443758,-588.39,0.00016438,2]
[366062384,1750043443767,-490.0,0.00016438,2]
[366062385,1750043443777,-695.2,0.00016438,2]
[366062386,1750043443787,-861.42,0.00016438,2]
[366062387,1750043443799,-300.0,0.00016438,2]
[366062388,1750043443809,-670.31,0.00016438,2]
[366062389,1750043443819,-872.61,0.00016438,2]
[366062390,1750043443829,-490.0,0.00016438,2]
[366062391,1750043443838,-490.0,0.00016438,2]
[366062392,1750043443848,-490.0,0.00016438,2]
[366062393,1750043443858,-430.0,0.00016438,2]
[366062394,1750043443867,-490.0,0.00016438,2]
[366062395,1750043443878,-490.0,0.00016438,2]
[366062396,1750043443887,-674.07,0.00016438,2]
[366062397,1750043443897,-490.0,0.00016438,2]
[366062398,1750043443907,-1192.44,0.00016438,2]
[366062399,1750043443918,-1161.79,0.00016438,2]
[366062400,1750043443928,-920.96,0.00016438,2]
[366062401,1750043443939,-1823.48,0.00016438,2]
[366062402,1750043443949,-1487.04,0.00016438,2]
[366062403,1750043443959,-492.18734899,0.00016438,2]
[366062404,1750043443969,-490.0,0.00016438,2]
[366062405,1750043443978,-490.0,0.00016438,2]
[366062406,1750043443988,-999.9,0.00016438,2]
[366062407,1750043443997,-490.84905135,0.00016438,2]
[366062408,1750043444007,-490.0,0.00016438,2]
[366062409,1750043444016,-490.0,0.00016438,2]
[366062410,1750043444025,-490.0,0.00016438,2]
[366062411,1750043444036,-986.47,0.00016438,2]
[366062412,1750043444045,-609.52,0.00016438,2]
[366062413,1750043444055,-1610.21,0.00016438,2]
[366062414,1750043444064,-767.74,0.00016438,2]
[366062415,1750043444074,-490.0,0.00016438,2]
[366062416,1750043444083,-490.0,0.00016438,2]
[366062417,1750043444092,-1115.22,0.00016438,2]
[366062418,1750043444102,-490.0,0.00016438,2]
[366062419,1750043444111,-550.76,0.00016438,2]
[366062420,1750043444121,-490.0,0.00016438,2]
[366062421,1750043444131,-490.0,0.00016438,2]
[366062422,1750043444140,-490.0,0.00016438,2]
[366062423,1750043444150,-490.0,0.00016438,2]
[366062424,1750043444159,-490.0,0.00016438,2]
[366062425,1750043444169,-490.0,0.00016438,2]
[366062426,1750043444178,-490.0,0.00016438,2]
[366062427,1750043444187,-490.0,0.00016438,2]
[366062428,1750043444197,-707.17,0.00016438,2]
[366062429,1750043444207,-1578.73,0.00016438,2]
[366062430,1750043444220,-1058.29,0.00016438,2]
[366062431,1750043444230,-1694.11,0.00016438,2]
[366062432,1750043444240,-1560.25,0.00016438,2]
[366062433,1750043444249,-670.07,0.00016438,2]
[366062434,1750043444261,-641.11,0.00016438,2]
[366062435,1750043444270,-687.75,0.00016438,2]
[366062436,1750043444279,-490.0,0.00016438,2]
[366062437,1750043444290,-559.26439644,0.00016438,2]
[366062438,1750043444300,-409.04176384,0.00016438,2]
[366062439,1750043444310,-490.0,0.00016438,2]
[366062440,1750043444319,-845.94,0.00016438,2]
[366062441,1750043444329,-1096.48,0.00016438,2]
[366062442,1750043444338,-701.8,0.00016438,2]
[366062443,1750043444347,-490.0,0.00016438,2]
[366062444,1750043444358,-466.07498801,0.00016438,2]
[366062445,1750043444367,-490.91705611,0.00016438,2]
[366062446,1750043444377,-1241.01,0.00016438,2]
[366062447,1750043444387,-598.73,0.00016438,2]
[366062448,1750043444396,-490.0,0.00016438,2]
[366062449,1750043444406,-726.02,0.00016438,2]
[366062450,1750043444415,-490.0,0.00016438,2]
[366062451,1750043444425,-490.0,0.00016438,2]
[366062452,1750043444435,-800.35,0.00016438,2]
[366062453,1750043444445,-1350.36,0.00016438,2]
[366062454,1750043444455,-490.0,0.00016438,2]
[366062455,1750043444465,-490.0,0.00016438,2]
[366062456,1750043444474,-490.0,0.00016438,2]
[366062457,1750043444483,-2030.71,0.00016438,2]
[366062458,1750043444493,-170.12385207,0.00016438,2]
[366062459,1750043444503,-901.12,0.00016438,2]
[366062460,1750043444515,-490.0,0.00016438,2]
[366062461,1750043444525,-151.0,0.00016438,2]
[366062462,1750043444534,-490.0,0.00016438,2]
[366062463,1750043444544,-500.0,0.00016438,2]
[366062464,1750043444554,-490.0,0.00016438,2]
[366062465,1750043444564,-500.0,0.00016438,2]
[366062466,1750043444575,-500.0,0.00016438,2]
[366062467,1750043444586,-495.85004879,0.00016438,2]
[366062468,1750043444600,-500.0,0.00016438,2]
[366062469,1750043444611,-490.0,0.00016438,2]
[366062470,1750043444621,-482.85830447,0.00016438,2]
[366062471,1750043444630,-490.0,0.00016438,2]
[366062472,1750043444640,-788.86,0.00016438,2]
[366062473,1750043444649,-151.0,0.00016438,2]
[366062474,1750043444659,-1774.18,0.00016438,2]
[366062475,1750043444669,-1154.84,0.00016438,2]
[366062476,1750043444678,-492.06716092,0.00016438,2]
[366062477,1750043444687,-490.0,0.00016438,2]
[366062478,1750043444696,-490.0,0.00016438,2]
[366062479,1750043444705,-1399.45,0.00016438,2]
[366062480,1750043444716,-751.06,0.00016438,2]
[366062481,1750043444726,-184.3856149,0.00016438,2]
[366062482,1750043444735,-151.0,0.00016438,2]
[366062483,1750043444744,-490.0,0.00016438,2]
[366062484,1750043444754,-490.0,0.00016438,2]
[366062485,1750043444764,-2972.882476,0.00016438,2]
[366062486,1750043444774,-490.0,0.00016438,2]
[366062487,1750043444783,-2007.53,0.00016438,2]
[366062488,1750043444794,-490.0,0.00016438,2]
[366062489,1750043444803,-761.34,0.00016438,2]
[366062490,1750043444813,-490.0,0.00016438,2]
[366062491,1750043444823,-1509.78,0.00016438,2]
[366062492,1750043444833,-541.47,0.00016438,2]
[366062493,1750043444843,-490.0,0.00016438,2]
[366062494,1750043444852,-156.902898,0.00016438,2]
[366062495,1750043444862,-490.0,0.00016438,2]
[366062496,1750043444872,-758.09,0.00016438,2]
[366062497,1750043444881,-738.59,0.00016438,2]
[366062498,1750043444891,-156.902898,0.00016438,2]
[366062499,1750043444901,-723.66,0.00016438,2]
[366062500,1750043444911,-380.61603,0.00016438,2]
[366062501,1750043444920,-493.35675332,0.00016438,2]
[366062502,1750043444931,-490.0,0.00016438,2]
[366062503,1750043444940,-490.0,0.00016438,2]
[366062504,1750043444950,-490.0,0.00016438,2]
[366062505,1750043444961,-596.11,0.00016438,2]
[366062506,1750043444976,-494.30476549,0.00016438,2]
[366062507,1750043444986,-2201.17,0.00016438,2]
[366062508,1750043444995,-708.69,0.00016438,2]
[366062509,1750043445004,-380.61603,0.00016438,2]
[366062510,1750043445015,-632.97,0.00016438,2]
[366062511,1750043445025,-493.02469441,0.00016438,2]
[366062512,1750043445034,-324.33292876,0.00016438,2]
[366062513,1750043445043,-652.89,0.00016438,2]
[366062514,1750043445053,-490.0,0.00016438,2]
[366062515,1750043445063,-1697.63,0.00016438,2]
[366062516,1750043445073,-647.98,0.00016438,2]
[366062517,1750043445083,-2141.65,0.00016438,2]
[366062518,1750043445092,-490.0,0.00016438,2]
[366062519,1750043445102,-490.0,0.00016438,2]
[366062520,1750043445111,-925.58,0.00016438,2]
[366062521,1750043445121,-1230.93,0.00016438,2]
[366062522,1750043445131,-506.86,0.00016438,2]
[366062523,1750043445140,-490.0,0.00016438,2]
[366062524,1750043445150,-998.7,0.00016438,2]
[366062525,1750043445160,-447.220023,0.00016438,2]
[366062526,1750043445170,-160.122082,0.00016438,2]
[366062527,1750043445179,-4028.057894,0.00016438,2]
[366062528,1750043445189,-490.0,0.00016438,2]
[366062529,1750043445198,-490.0,0.00016438,2]
[366062530,1750043445209,-329.095487,0.00016438,2]
[366062531,1750043445223,-492.98973163,0.00016438,2]
[366062532,1750043445233,-1352.26,0.00016438,2]
[366062533,1750043445243,-595.0,0.00016438,2]
[366062534,1750043445253,-490.0,0.00016438,2]
[366062535,1750043445263,-490.0,0.00016438,2]
[366062536,1750043445273,-494.59063002,0.00016438,2]
[366062537,1750043445282,-795.0,0.00016438,2]
[366062538,1750043445292,-447.220023,0.00016438,2]
[366062539,1750043445302,-159.99973,0.00016438,2]
[366062540,1750043445311,-329.095487,0.00016438,2]
[366062541,1750043445321,-889.31,0.00016438,2]
[366062542,1750043445330,-490.0,0.00016438,2]
[366062543,1750043445340,-415.99836128,0.00016438,2]
[366062544,1750043445350,-490.0,0.00016438,2]
[366062545,1750043445360,-490.0,0.00016438,2]
[366062546,1750043445370,-509.38,0.00016438,2]
[366062547,1750043445380,-1271.26,0.00016438,2]
[366062548,1750043445390,-490.0,0.00016438,2]
[366062549,1750043445400,-763.96,0.00016438,2]
[366062550,1750043445409,-490.58954743,0.00016438,2]
[366062551,1750043445419,-547.25,0.00016438,2]
[366062552,1750043445428,-490.0,0.00016438,2]
[366062553,1750043445438,-2076.06,0.00016438,2]
[366062554,1750043445448,-490.0,0.00016438,2]
[366062555,1750043445458,-540.55,0.00016438,2]
[366062556,1750043445467,-493.67921577,0.00016438,2]
[366062557,1750043445476,-490.0,0.00016438,2]
[366062558,1750043445486,-643.3,0.00016438,2]
[366062559,1750043445495,-742.83,0.00016438,2]
[366062560,1750043445505,-493.27370035,0.00016438,2]
[366062561,1750043445516,-948.62,0.00016438,2]
[366062562,1750043445526,-946.6,0.00016438,2]
[366062563,1750043445536,-490.0,0.00016438,2]
[366062564,1750043445546,-1778.77,0.00016438,2]
[366062565,1750043445556,-490.0,0.00016438,2]
[366062566,1750043445566,-491.5865919,0.00016438,2]
[366062567,1750043445575,-490.0,0.00016438,2]
[366062568,1750043445586,-771.55,0.00016438,2]
[366062569,1750043445596,-491.18957131,0.00016438,2]
[366062570,1750043445606,-225.21255862,0.00016438,2]
[366062571,1750043445616,-496.27368078,0.00016438,2]
[366062572,1750043445626,-490.0,0.00016438,2]
[366062573,1750043445637,-2577.98,0.00016438,2]
[366062574,1750043445647,-490.0,0.00016438,2]
[366062575,1750043445657,-1248.65,0.00016438,2]
[366062576,1750043445667,-151.0,0.00016438,2]
[366062577,1750043445677,-500.0,0.00016438,2]
[366062578,1750043445687,-939.59,0.00016438,2]
[366062579,1750043445698,-491.45293837,0.00016438,2]
[366062580,1750043445706,-150.0,0.00016438,2]
[366062581,1750043445716,-500.0,0.00016438,2]